bitfinex-derivatives/quotes_BTCF0:USTF0_20241013
["timestamp","ask_amount","ask_price","bid_price","bid_amount"]
[1728843016637,0.080027,62488.0,62487.0,0.0638482]
[1728843016945,0.080027,62488.0,62481.0,0.0037]
[1728843016946,0.11,62488.0,62480.0,0.0638482]
[1728843017240,0.11,62488.0,62477.0,0.0638482]
[1728843017241,0.4708,62481.0,62477.0,0.0638482]
[1728843017434,0.4708,62481.0,62476.0,0.080042]
[1728843017435,0.19004,62478.0,62476.0,0.080042]
[1728843017638,0.080041,62477.0,62476.0,0.080042]
[1728843017843,0.080042,62476.0,62475.0,0.0733]
[1728843018046,0.440842,62476.0,62475.0,0.0733]
[1728843018645,0.080044,62475.0,62474.0,0.0761]
[1728843019467,0.441642,62476.0,62474.0,0.0761]
[1728843019635,0.440842,62476.0,62474.0,0.0761]
[1728843019947,0.080044,62475.0,62474.0,0.0761]
[1728843020450,0.081044,62475.0,62474.0,0.0761]
[1728843020839,0.080044,62475.0,62474.0,0.0761]
[1728843021040,0.443682,62476.0,62470.0,0.0638482]
[1728843021349,0.250049,62471.0,62470.0,0.0638482]
[1728843021549,0.250049,62471.0,62468.0,0.072]
[1728843021550,0.17,62471.0,62469.0,0.0638482]
[1728843023048,0.250049,62471.0,62470.0,0.01]
[1728843023649,0.611849,62471.0,62470.0,0.007]
[1728843023947,0.08005,62470.0,62469.0,0.01]
[1728843024541,0.077051,62469.0,62468.0,0.072]
[1728843024735,0.070051,62469.0,62468.0,0.072]
[1728843025646,0.08006,62462.0,62461.0,0.0037]
[1728843025947,0.17,62462.0,62461.0,0.226961]
[1728843027047,0.250057,62465.0,62461.0,0.1469]
[1728843027350,0.250057,62465.0,62462.0,0.080059]
[1728843028047,0.080058,62464.0,62462.0,0.080059]
[1728843028347,0.250057,62465.0,62463.0,0.080059]
[1728843028645,0.17,62464.0,62461.0,0.1469]
[1728843029446,0.08006,62462.0,62461.0,0.21049009]
[1728843029639,0.08006,62462.0,62461.0,0.1469]
[1728843030449,0.08006,62462.0,62454.0,0.06359009]
[1728843030450,0.080061,62461.0,62454.0,0.06359009]
[1728843030644,0.08007,62454.0,62453.0,1.04183]
[1728843030836,0.08007,62454.0,62453.0,1.04027]
[1728843031043,1.16043,62454.0,62453.0,1.04027]
[1728843031548,0.07907,62454.0,62453.0,1.04027]
[1728843031847,0.17,62455.0,62454.0,0.08207]
[1728843032045,0.250069,62455.0,62454.0,0.08207]
[1728843033344,0.250069,62455.0,62454.0,0.08007]
[1728843033754,0.251069,62455.0,62454.0,0.08007]
[1728843034259,0.252069,62455.0,62454.0,0.08207]
[1728843034855,0.250069,62455.0,62454.0,0.08107]
[1728843036447,0.610869,62455.0,62454.0,0.08107]
[1728843036652,0.611869,62455.0,62454.0,0.08107]
[1728843036852,0.5318,62455.0,62453.0,1.04183]
[1728843037153,0.08007,62454.0,62453.0,1.04027]
[1728843038041,0.08007,62454.0,62453.0,1.117442]
[1728843038637,0.40080426,62454.0,62453.0,1.117442]
[1728843039654,0.3608,62454.0,62453.0,1.117442]
[1728843041650,0.17,62455.0,62453.0,1.03737]
[1728843041854,0.17,62455.0,62454.0,0.08007]
[1728843042052,0.17,62455.0,62453.0,1.10252009]
[1728843042252,0.08007,62454.0,62453.0,1.03737]
[1728843043047,0.08007,62454.0,62453.0,1.03637]
[1728843043253,1.33043,62454.0,62453.0,0.37852101]
[1728843043457,1.23633,62454.0,62453.0,0.37852101]
[1728843043749,1.23633,62454.0,62453.0,0.37682101]
[1728843044144,1.23633,62454.0,62453.0,0.37512101]
[1728843044344,1.23633,62454.0,62453.0,0.37122101]
[1728843044544,1.23633,62454.0,62445.0,0.0037]
[1728843044545,0.080081,62446.0,62445.0,0.0037]
[1728843044746,0.080093,62437.0,62433.0,0.07985571]
[1728843044947,0.080095,62435.0,62434.0,0.080096]
[1728843045261,0.250095,62435.0,62434.0,0.080096]
[1728843046258,0.080099,62432.0,62431.0,0.07985571]
[1728843046549,0.080099,62432.0,62431.0,0.11257628]
[1728843046550,0.17,62432.0,62431.0,0.11257628]
[1728843047253,0.2501,62432.0,62431.0,0.11221466]
[1728843047551,0.2511,62432.0,62431.0,0.11221466]
[1728843047755,0.2521,62432.0,62431.0,0.11321466]
[1728843047945,0.002,62432.0,62431.0,0.11321466]
[1728843048256,0.252099,62432.0,62431.0,0.11321466]
[1728843049444,0.17,62432.0,62431.0,0.11321466]
[1728843049648,0.250099,62432.0,62431.0,0.11321466]
[1728843050355,0.250099,62432.0,62431.0,0.19286104]
[1728843050850,0.250099,62432.0,62431.0,0.11321466]
[1728843051153,0.250099,62432.0,62426.0,0.07964952]
[1728843051154,0.420099,62432.0,62426.0,0.07964952]
[1728843051353,0.420099,62432.0,62425.0,0.07964952]
[1728843051354,0.080106,62426.0,62425.0,0.07964952]
[1728843051552,0.250106,62426.0,62425.0,0.07965493]
[1728843051854,0.080108,62425.0,62424.0,0.07965493]
[1728843052152,0.080108,62425.0,62424.0,0.19189008]
[1728843052153,0.250108,62425.0,62424.0,0.19189008]
[1728843052345,0.250108,62425.0,62423.0,0.07965493]
[1728843052346,0.7008,62425.0,62423.0,0.07965493]
[1728843052545,0.7008,62425.0,62419.0,0.07965493]
[1728843052546,0.08011,62423.0,62419.0,0.07965493]
[1728843052745,0.610914,62420.0,62419.0,0.07965493]
[1728843052954,0.5308,62420.0,62416.0,0.07965493]
[1728843053151,0.250118,62417.0,62416.0,0.07965493]
[1728843053355,0.250118,62417.0,62416.0,0.19211691]
[1728843053548,0.248118,62417.0,62416.0,0.1921043]
[1728843053748,0.246118,62417.0,62416.0,0.1921043]
[1728843053958,0.246118,62417.0,62416.0,0.2722233]
[1728843054255,0.247118,62417.0,62416.0,0.1941043]
[1728843054557,0.727758,62417.0,62416.0,0.002]
[1728843054857,0.248118,62417.0,62416.0,0.004]
[1728843055354,0.080124,62412.0,62411.0,0.0731]
[1728843055557,0.610924,62412.0,62411.0,0.0731]
[1728843056050,0.610924,62412.0,62411.0,0.153226]
[1728843056051,0.5308,62412.0,62411.0,0.153226]
[1728843056658,0.5318,62412.0,62411.0,0.153226]
[1728843056846,0.5328,62412.0,62411.0,0.153226]
[1728843057051,0.080128,62409.0,62408.0,0.07965493]
[1728843057353,0.443845,62412.0,62411.0,0.080126]
[1728843057556,0.612925,62412.0,62411.0,0.080126]
[1728843057857,0.612925,62412.0,62407.0,0.080131]
[1728843057858,0.080131,62408.0,62407.0,0.080131]
[1728843059453,0.001,62409.0,62406.0,0.16162]
[1728843059454,0.001,62409.0,62408.0,0.080129]
[1728843059643,0.171,62409.0,62408.0,0.080129]
[1728843059845,0.3618,62412.0,62411.0,0.080126]
[1728843059846,0.3608,62412.0,62411.0,0.080126]
[1728843060254,0.17,62414.0,62408.0,0.080129]
[1728843060454,0.3608,62418.0,62408.0,0.080129]
[1728843060455,0.17,62417.0,62416.0,0.080119]
[1728843062155,0.11387544,62417.0,62416.0,0.080119]
[1728843062954,0.17,62417.0,62416.0,0.080119]
[1728843064057,0.250118,62417.0,62416.0,0.080119]
[1728843064759,0.17,62417.0,62410.0,0.07965493]
[1728843064962,0.3608,62419.0,62414.0,0.08012]
[1728843064963,0.080121,62415.0,62414.0,0.08012]
[1728843065166,0.250121,62415.0,62414.0,0.08012]
[1728843065467,0.080126,62412.0,62411.0,0.080124]
[1728843065655,0.17,62412.0,62410.0,0.07965493]
[1728843065862,0.080127,62410.0,62409.0,0.15978293]
[1728843066060,0.250127,62410.0,62409.0,0.27157969]
[1728843066262,0.250127,62410.0,62409.0,0.2716076]
[1728843066462,0.250127,62410.0,62409.0,0.15978293]
[1728843066958,0.17,62410.0,62408.0,0.07965493]
[1728843067168,0.440928,62409.0,62408.0,0.07965493]
[1728843067461,0.440928,62409.0,62408.0,0.19152952]
[1728843067656,0.3608,62409.0,62406.0,0.07965493]
[1728843067853,0.3608,62409.0,62405.0,0.23628793]
[1728843067854,0.080132,62406.0,62405.0,0.23628793]
[1728843068158,0.250132,62406.0,62405.0,0.23628793]
[1728843068360,0.250132,62406.0,62405.0,0.156633]
[1728843068863,0.250132,62406.0,62405.0,0.15615493]
[1728843069061,0.250132,62406.0,62405.0,0.23628793]
[1728843069562,0.5318,62409.0,62408.0,0.080129]
[1728843069960,0.5308,62409.0,62408.0,0.080129]
[1728843070551,0.3608,62409.0,62408.0,0.080129]
[1728843070754,0.3618,62409.0,62408.0,0.080129]
[1728843070952,0.3628,62409.0,62408.0,0.080129]
[1728843071978,0.5328,62409.0,62408.0,0.080129]
[1728843072957,0.612928,62409.0,62408.0,0.080129]
[1728843073156,0.080131,62407.0,62406.0,0.0737]
[1728843073556,0.5328,62409.0,62398.0,0.07965493]
[1728843073763,0.17,62399.0,62398.0,0.07965493]
[1728843074060,0.36364,62409.0,62398.0,0.19186303]
[1728843074061,0.17,62402.0,62398.0,0.19186303]
[1728843074271,0.17,62402.0,62398.0,0.07965493]
[1728843074564,0.17,62402.0,62401.0,0.080138]
[1728843076270,0.171,62402.0,62401.0,0.08514972]
[1728843076462,0.171,62402.0,62401.0,0.080138]
[1728843076665,0.172,62402.0,62401.0,0.08514972]
[1728843077160,0.252137,62402.0,62401.0,0.08514972]
[1728843078161,0.172,62402.0,62401.0,0.080138]
[1728843078667,0.172,62402.0,62401.0,0.32658382]
[1728843079460,0.080135,62404.0,62403.0,0.080136]
[1728843079668,0.250135,62404.0,62403.0,0.19256763]
[1728843080575,0.17,62404.0,62403.0,0.3258803]
[1728843080762,0.172,62404.0,62403.0,0.3258803]
[1728843082177,0.002,62404.0,62403.0,0.3258803]
[1728843082470,0.3608,62408.0,62403.0,0.4958803]
[1728843082662,0.0037,62413.0,62412.0,0.080124]
[1728843082862,0.3608,62415.0,62414.0,0.080122]
[1728843083064,0.250115,62420.0,62418.0,0.080116]
[1728843083278,0.250115,62420.0,62419.0,0.19247703]
[1728843083459,0.17,62420.0,62419.0,0.19254663]
[1728843083663,0.12991012,62420.0,62419.0,0.19254663]
[1728843084370,0.21002412,62420.0,62419.0,0.19254663]
[1728843084763,0.21102412,62420.0,62419.0,0.19254663]
[1728843086459,0.21102412,62420.0,62419.0,0.27138572]
[1728843086460,0.21302412,62420.0,62419.0,0.27138572]
[1728843086868,0.13291012,62420.0,62419.0,0.27138572]
[1728843087171,0.13291012,62420.0,62419.0,0.19134328]
[1728843087675,0.21302412,62420.0,62419.0,0.19134328]
[1728843088263,0.13291012,62420.0,62419.0,0.19134328]
[1728843088469,0.13291012,62420.0,62419.0,0.27137119]
[1728843089277,0.21302412,62420.0,62419.0,0.27137119]
[1728843089577,0.21302412,62420.0,62419.0,0.27136044]
[1728843089772,0.21302412,62420.0,62419.0,0.19124544]
[1728843090079,0.080115,62419.0,62418.0,0.08001716]
[1728843090373,0.080115,62419.0,62415.0,0.08001716]
[1728843090374,0.17,62419.0,62415.0,0.08001716]
[1728843090571,0.083114,62420.0,62414.0,0.08001716]
[1728843090572,0.08012,62415.0,62414.0,0.08001716]
[1728843090772,0.08012,62415.0,62414.0,0.19130624]
[1728843091577,0.08012,62415.0,62414.0,0.08001716]
[1728843092681,0.53164,62416.0,62413.0,0.16014016]
[1728843092682,0.080122,62414.0,62413.0,0.16014016]
[1728843092877,0.080122,62414.0,62413.0,0.27145148]
[1728843093471,0.11144176,62414.0,62413.0,0.080123]
[1728843093863,0.11144176,62414.0,62411.0,0.072]
[1728843093864,0.080124,62412.0,62411.0,0.152126]
[1728843094064,0.28144376,62412.0,62411.0,0.152126]
[1728843095070,0.39232049,62412.0,62411.0,0.152126]
[1728843095577,0.32168746,62412.0,62411.0,0.152126]
[1728843095874,0.28344376,62412.0,62411.0,0.152126]
[1728843096070,0.39422814,62412.0,62411.0,0.152126]
[1728843096468,0.39418208,62412.0,62411.0,0.152126]
[1728843097980,0.36290838,62412.0,62411.0,0.152126]
[1728843099174,0.36290838,62412.0,62411.0,0.072]
[1728843099379,0.28278438,62412.0,62408.0,0.080129]
[1728843099569,0.64358438,62412.0,62406.0,0.080131]
[1728843099879,0.17,62407.0,62406.0,0.080131]
[1728843100481,0.250131,62407.0,62406.0,0.080131]
[1728843102382,0.252131,62407.0,62406.0,0.080131]
[1728843102678,0.252131,62407.0,62406.0,0.19156511]
[1728843102981,0.172,62407.0,62406.0,0.19156511]
[1728843103380,0.002,62407.0,62406.0,0.19156511]
[1728843103883,0.002,62407.0,62406.0,0.55236511]
[1728843104482,0.002,62407.0,62406.0,0.19156511]
[1728843108587,0.0332378,62407.0,62406.0,0.080131]
[1728843109184,0.2032378,62407.0,62406.0,0.080131]
[1728843109379,0.2833688,62407.0,62406.0,0.080131]
[1728843110989,0.0332378,62407.0,62406.0,0.080131]
[1728843111588,0.0332378,62407.0,62406.0,0.440931]
[1728843111784,0.0332378,62407.0,62406.0,0.610931]
[1728843112190,0.03332239,62407.0,62406.0,0.610931]
[1728843114800,0.03332239,62407.0,62406.0,0.440931]
[1728843115703,0.002,62407.0,62406.0,0.68513811]
[1728843118099,0.11078438,62410.0,62409.0,0.080128]
[1728843118289,0.11078438,62410.0,62409.0,0.1915383]
[1728843118493,0.250126,62411.0,62409.0,0.1915383]
[1728843118693,0.250126,62411.0,62410.0,0.20754595]
[1728843119395,0.250126,62411.0,62410.0,0.1114103]
[1728843120906,0.251126,62411.0,62410.0,0.2085781]
[1728843121492,0.251126,62411.0,62410.0,0.1124103]
[1728843121692,0.252126,62411.0,62410.0,0.1134103]
[1728843122001,0.251126,62411.0,62410.0,0.21058306]
[1728843122203,0.250126,62411.0,62410.0,0.21058306]
[1728843123706,0.36993765,62411.0,62410.0,0.003]
[1728843124999,0.36995818,62411.0,62410.0,0.003]
[1728843127302,0.32077106,62411.0,62410.0,0.003]
[1728843127706,0.36995858,62411.0,62410.0,0.003]
[1728843128301,0.36996045,62411.0,62410.0,0.003]
[1728843128507,0.42744441,62411.0,62410.0,0.003]
[1728843128695,0.78824441,62411.0,62410.0,0.0018527]
[1728843129301,0.78781558,62411.0,62410.0,0.0018527]
[1728843130302,0.79201338,62411.0,62410.0,0.0018527]
[1728843130502,0.96201338,62411.0,62410.0,0.0018527]
[1728843130703,0.610926,62411.0,62410.0,0.0018527]
[1728843138706,0.87274029,62411.0,62410.0,0.0018527]
[1728843139208,0.73032826,62411.0,62410.0,0.00114839]
[1728843141505,0.73032826,62411.0,62398.0,0.0037]
[1728843141506,0.080141,62399.0,62398.0,0.0037]
[1728843141808,0.080141,62399.0,62394.0,0.0754]
[1728843141809,0.080146,62395.0,62394.0,0.0754]
[1728843142008,0.1111052,62395.0,62394.0,0.0754]
[1728843142208,0.15035836,62395.0,62394.0,0.0754]
[1728843142610,0.32035836,62395.0,62394.0,0.0754]
[1728843142815,0.32035836,62395.0,62394.0,0.155547]
[1728843143111,0.32036163,62395.0,62394.0,0.155547]
[1728843143309,0.32036163,62395.0,62394.0,0.18466377]
[1728843143713,0.15036163,62395.0,62394.0,0.18466377]
[1728843144111,0.15136163,62395.0,62394.0,0.18466377]
[1728843144310,0.11210885,62395.0,62394.0,0.18466377]
[1728843144613,0.32136197,62395.0,62394.0,0.10451677]
[1728843144915,0.32236197,62395.0,62394.0,0.10451677]
[1728843145708,0.21204306,62395.0,62394.0,0.10451677]
[1728843146220,0.21204306,62395.0,62394.0,0.0754]
[1728843147115,0.21204306,62395.0,62394.0,0.13939069]
[1728843147417,0.21204306,62395.0,62387.0,0.23317276]
[1728843147418,0.080147,62394.0,62393.0,0.06399069]
[1728843147620,0.080149,62393.0,62392.0,0.06399069]
[1728843147913,0.250149,62393.0,62392.0,0.06399069]
[1728843148313,0.250149,62393.0,62387.0,0.137]
[1728843148314,0.17,62393.0,62391.0,0.06399069]
[1728843148617,0.04204306,62395.0,62391.0,0.06399069]
[1728843148618,0.25015,62392.0,62391.0,0.06399069]
[1728843149317,0.080151,62391.0,62390.0,0.06399069]
[1728843149517,0.610951,62391.0,62390.0,0.06399069]
[1728843149717,0.080153,62390.0,62389.0,0.04798075]
[1728843149912,0.250153,62390.0,62386.0,0.04798075]
[1728843150216,0.080158,62386.0,62385.0,0.00240423]
[1728843151014,0.080159,62385.0,62384.0,0.04798075]
[1728843151211,0.08016,62384.0,62381.0,0.06399069]
[1728843151525,0.08016,62384.0,62379.0,0.0683]
[1728843151526,0.080165,62380.0,62379.0,0.0683]
[1728843151825,0.080165,62380.0,62379.0,0.148467]
[1728843152317,0.080162,62383.0,62382.0,0.080162]
[1728843152519,0.250162,62383.0,62382.0,0.080162]
[1728843154532,0.251162,62383.0,62382.0,0.080162]
[1728843154726,0.252162,62383.0,62382.0,0.080162]
[1728843156824,0.080164,62381.0,62380.0,0.06392316]
[1728843157024,0.080165,62380.0,62379.0,0.13222316]
[1728843157319,0.080165,62380.0,62379.0,0.0683]
[1728843157623,0.250165,62380.0,62379.0,0.11623753]
[1728843158018,0.250165,62380.0,62379.0,0.0683]
[1728843158214,0.250165,62380.0,62378.0,0.04793753]
[1728843158215,0.080167,62379.0,62378.0,0.04793753]
[1728843159524,0.561087,62379.0,62378.0,0.04793753]
[1728843159720,1.161087,62379.0,62378.0,0.04793753]
[1728843160118,1.161087,62379.0,62374.0,0.04793753]
[1728843160119,1.25092,62379.0,62374.0,0.04793753]
[1728843160319,0.610972,62375.0,62374.0,0.04793753]
[1728843160831,1.091932,62375.0,62374.0,0.04793753]
[1728843161533,1.091932,62375.0,62371.0,0.06392316]
[1728843161534,0.080176,62372.0,62371.0,0.06392316]
[1728843161725,0.440976,62372.0,62371.0,0.06392316]
[1728843162039,0.440976,62372.0,62362.0,0.0037]
[1728843162040,0.08018,62369.0,62362.0,0.0037]
[1728843162333,0.08018,62369.0,62357.0,0.111798]
[1728843162334,0.080192,62359.0,62358.0,0.0037]
[1728843162518,0.250194,62358.0,62357.0,0.111798]
[1728843164225,0.251194,62358.0,62357.0,0.111798]
[1728843164726,0.251194,62358.0,62355.0,0.1404]
[1728843164727,0.2012575,62358.0,62355.0,0.1404]
[1728843164936,0.080196,62356.0,62355.0,0.1404]
[1728843165429,0.002,62358.0,62357.0,0.080195]
[1728843165826,0.1737,62364.0,62363.0,0.080187]
[1728843166029,0.17,62364.0,62363.0,0.080187]
[1728843166330,0.250186,62364.0,62363.0,0.080187]
[1728843167224,0.251186,62364.0,62363.0,0.080187]
[1728843167835,0.171,62364.0,62363.0,0.080187]
[1728843168025,0.080184,62366.0,62365.0,0.080182]
[1728843169131,0.17,62368.0,62363.0,0.02894555]
[1728843169332,0.001,62366.0,62365.0,0.081185]
[1728843169735,0.002,62366.0,62365.0,0.082185]
[1728843170226,0.17,62367.0,62363.0,0.001]
[1728843170421,0.002,62368.0,62363.0,0.002]
[1728843170622,0.002,62368.0,62367.0,0.080182]
[1728843170827,0.001,62368.0,62367.0,0.080182]
[1728843171136,0.17,62371.0,62370.0,0.080178]
[1728843172132,0.080173,62374.0,62373.0,0.080173]
[1728843172736,0.250173,62374.0,62373.0,0.080173]
[1728843173125,0.0037,62383.0,62367.0,0.172]
[1728843173126,0.0024057,62380.0,62367.0,0.172]
[1728843173439,0.0024057,62380.0,62375.0,0.080171]
[1728843173440,0.080171,62376.0,62375.0,0.080171]
[1728843174538,0.080171,62376.0,62373.0,0.002]
[1728843174539,0.080173,62374.0,62373.0,0.002]
[1728843174730,0.250173,62374.0,62373.0,0.002]
[1728843175931,0.080181,62368.0,62367.0,0.080182]
[1728843176132,0.250181,62368.0,62367.0,0.080182]
[1728843177240,0.251181,62368.0,62367.0,0.080182]
[1728843177636,0.252181,62368.0,62367.0,0.081182]
[1728843178933,0.082181,62368.0,62367.0,0.081182]
[1728843179135,0.252181,62368.0,62367.0,0.081182]
[1728843179531,0.002,62368.0,62367.0,0.081182]
[1728843179739,0.002,62368.0,62367.0,0.562182]
[1728843179944,0.080173,62374.0,62373.0,0.080174]
[1728843180628,0.17,62382.0,62376.0,0.080171]
[1728843180936,0.080169,62377.0,62376.0,0.080171]
[1728843181240,0.080169,62377.0,62370.0,0.17]
[1728843181241,0.001,62374.0,62373.0,0.250174]
[1728843181435,0.5345,62382.0,62379.0,0.080167]
[1728843181630,0.5355,62382.0,62379.0,0.080167]
[1728843182443,0.3655,62382.0,62379.0,0.080167]
[1728843182634,0.0034057,62380.0,62379.0,0.080167]
[1728843183040,0.0044057,62380.0,62379.0,0.082167]
[1728843183236,0.0044057,62380.0,62379.0,0.084167]
[1728843184133,0.03699776,62380.0,62379.0,0.084167]
[1728843184436,0.03700374,62380.0,62379.0,0.084167]
[1728843184639,0.03700374,62380.0,62379.0,0.1125933]
[1728843184950,0.0044057,62380.0,62379.0,0.1125933]
[1728843185445,0.0044057,62380.0,62379.0,0.084167]
[1728843185636,0.03702988,62380.0,62379.0,0.084167]
[1728843185837,0.28719488,62380.0,62379.0,0.004]
[1728843187340,0.2545707,62380.0,62379.0,0.004]
[1728843187537,0.28704745,62380.0,62379.0,0.004]
[1728843189937,0.2545707,62380.0,62379.0,0.004]
[1728843190142,0.252165,62380.0,62379.0,0.004]
[1728843193846,0.082165,62380.0,62379.0,0.004]
[1728843194044,0.082165,62380.0,62379.0,0.084167]
[1728843196250,0.082165,62380.0,62379.0,0.004]
[1728843197150,0.082165,62380.0,62379.0,0.084167]
[1728843197451,0.082165,62380.0,62379.0,0.004]
[1728843197854,0.082165,62380.0,62379.0,0.084167]
[1728843198048,0.082165,62380.0,62379.0,0.004]
[1728843198246,0.082165,62380.0,62379.0,0.00239136]
[1728843198247,0.20331069,62380.0,62379.0,0.00239136]
[1728843198447,0.24039955,62380.0,62379.0,0.00239136]
[1728843198843,0.36154524,62380.0,62379.0,0.00239136]
[1728843199451,0.12314569,62380.0,62379.0,0.08255836]
[1728843199748,0.002,62380.0,62379.0,0.44335836]
[1728843200052,0.07393286,62380.0,62379.0,0.44837201]
[1728843200252,0.0037,62382.0,62381.0,0.080164]
[1728843200455,0.14596733,62382.0,62381.0,0.250164]
[1728843200756,0.05290827,62382.0,62381.0,0.250164]
[1728843202056,0.05390827,62382.0,62381.0,0.253164]
[1728843202355,0.05490827,62382.0,62381.0,0.253164]
[1728843203056,0.0057,62382.0,62381.0,1.334084]
[1728843203646,0.0057,62382.0,62381.0,1.33909745]
[1728843203852,0.0057,62382.0,62381.0,1.334084]
[1728843204251,0.14794805,62382.0,62381.0,1.334084]
[1728843204454,0.05490605,62382.0,62381.0,1.334084]
[1728843205157,0.05490605,62382.0,62381.0,1.08392]
[1728843205353,0.05490605,62382.0,62381.0,1.25392]
[1728843205856,0.0057,62382.0,62381.0,1.25392]
[1728843206056,0.0057,62382.0,62381.0,1.334084]
[1728843209160,0.0057,62382.0,62381.0,0.083164]
[1728843213262,0.03806181,62382.0,62381.0,0.083164]
[1728843213465,0.19612911,62382.0,62381.0,0.083164]
[1728843213766,0.28459465,62382.0,62381.0,0.083164]
[1728843214273,0.080172,62375.0,62374.0,0.0016]
[1728843214458,0.080172,62375.0,62373.0,0.3608]
[1728843214459,0.080173,62374.0,62373.0,0.3608]
[1728843214768,0.080176,62372.0,62371.0,0.080177]
[1728843214960,0.20100339,62372.0,62371.0,0.080177]
[1728843215470,0.3749292,62372.0,62371.0,0.080177]
[1728843216365,0.3759292,62372.0,62371.0,0.081177]
[1728843216560,0.3769292,62372.0,62371.0,0.081177]
[1728843219068,0.36107113,62372.0,62371.0,0.081177]
[1728843219278,0.20300339,62372.0,62371.0,0.081177]
[1728843219971,0.36102898,62372.0,62371.0,0.081177]
[1728843220169,0.20300339,62372.0,62371.0,0.081177]
[1728843220370,0.47533781,62372.0,62371.0,0.001]
[1728843220577,0.62131383,62372.0,62371.0,0.001]
[1728843220775,0.61994374,62372.0,62371.0,0.001]
[1728843221268,0.40285887,62372.0,62371.0,0.11286504]
[1728843223569,0.40285887,62372.0,62371.0,0.19304204]
[1728843224381,0.40285887,62372.0,62371.0,0.19270509]
[1728843225583,0.04205887,62372.0,62371.0,0.19270509]
[1728843226368,0.04205887,62372.0,62371.0,0.27271733]
[1728843226661,0.04205887,62372.0,62371.0,0.19270509]
[1728843227476,0.04205887,62372.0,62371.0,0.27271276]
[1728843228474,0.0730404,62372.0,62371.0,0.081177]
[1728843228868,0.03298153,62372.0,62371.0,0.081177]
[1728843229471,0.11315753,62372.0,62371.0,0.081177]
[1728843233479,0.11319411,62372.0,62371.0,0.081177]
[1728843236375,0.082176,62372.0,62371.0,0.19264757]
[1728843240382,0.082176,62372.0,62371.0,0.11247057]
[1728843240784,0.082176,62372.0,62371.0,0.27273021]
[1728843241483,0.082176,62372.0,62371.0,0.19264757]
[1728843241881,0.002,62372.0,62371.0,0.19264757]
[1728843242187,0.002,62372.0,62371.0,0.55846195]
[1728843242384,0.080165,62381.0,62371.0,0.6913064]
[1728843242685,0.080165,62381.0,62380.0,0.080165]
[1728843242878,0.080165,62381.0,62380.0,0.16027599]
[1728843243080,0.080157,62387.0,62381.0,0.080164]
[1728843243391,0.080157,62387.0,62381.0,0.28769863]
[1728843243682,0.080157,62387.0,62381.0,0.19156122]
[1728843243987,0.11,62386.0,62381.0,0.19156122]
[1728843244177,0.08016,62384.0,62381.0,0.28769863]
[1728843244385,0.11,62383.0,62381.0,0.28769863]
[1728843244880,0.3618,62382.0,62381.0,0.28769863]
[1728843245082,0.3618,62382.0,62381.0,0.19156122]
[1728843245384,0.3618,62382.0,62381.0,0.28769863]
[1728843245385,0.441963,62382.0,62381.0,0.28769863]
[1728843245588,0.441963,62382.0,62381.0,0.19156122]
[1728843245784,0.611963,62382.0,62381.0,0.19145475]
[1728843246190,0.612963,62382.0,62381.0,0.19445475]
[1728843248685,0.612963,62382.0,62381.0,0.27453202]
[1728843248996,0.252163,62382.0,62381.0,0.27453202]
[1728843249195,0.252163,62382.0,62381.0,0.16324127]
[1728843249585,0.252163,62382.0,62381.0,0.083164]
[1728843249778,0.252163,62382.0,62381.0,0.08307727]
[1728843249997,0.612963,62382.0,62381.0,0.003]
[1728843250495,0.612963,62382.0,62381.0,0.11420943]
[1728843251093,0.612963,62382.0,62381.0,0.003]
[1728843251491,0.79025255,62382.0,62381.0,0.00184225]
[1728843252893,1.27117255,62382.0,62381.0,0.00184225]
[1728843253091,1.87117255,62382.0,62381.0,0.00184225]
[1728843253297,1.87117255,62382.0,62381.0,0.00113416]
[1728843258300,1.81366644,62382.0,62381.0,0.00113416]
[1728843258499,1.693883,62382.0,62381.0,0.00113416]
[1728843259895,0.080171,62376.0,62375.0,0.06405567]
[1728843260101,0.080172,62375.0,62374.0,0.06405567]
[1728843260287,0.080173,62374.0,62373.0,0.06405567]
[1728843260494,0.17,62374.0,62372.0,0.06405567]
[1728843260702,0.250174,62373.0,62372.0,0.06405567]
[1728843261794,0.250174,62373.0,62372.0,0.06505567]
[1728843262199,0.250174,62373.0,62372.0,0.001]
[1728843262404,0.250174,62373.0,62372.0,0.06405567]
[1728843262405,0.17,62373.0,62372.0,0.06405567]
[1728843262604,0.17,62373.0,62372.0,0.001]
[1728843262605,0.251174,62373.0,62372.0,0.001]
[1728843263102,0.251174,62373.0,62372.0,0.002]
[1728843263705,0.252174,62373.0,62372.0,0.002]
[1728843265702,0.422174,62373.0,62372.0,0.002]
[1728843266299,0.903174,62373.0,62372.0,0.002]
[1728843267694,0.903174,62373.0,62362.0,0.16395439]
[1728843267695,0.080182,62367.0,62364.0,0.06405567]
[1728843267897,0.7216,62365.0,62364.0,0.06405567]
[1728843268100,0.7216,62365.0,62360.0,0.08006539]
[1728843268101,0.080186,62364.0,62363.0,0.06405567]
[1728843268295,0.080189,62362.0,62361.0,0.06405567]
[1728843268702,0.08019,62361.0,62359.0,0.06405567]
[1728843268908,0.080195,62357.0,62356.0,0.08006539]
[1728843269100,0.080195,62357.0,62356.0,0.19204627]
[1728843269406,0.080195,62357.0,62353.0,0.22990582]
[1728843269407,0.080196,62356.0,62355.0,0.08006539]
[1728843269609,0.250196,62356.0,62355.0,0.16026339]
[1728843269805,0.250196,62356.0,62355.0,0.27191764]
[1728843270604,0.250196,62356.0,62355.0,0.080198]
[1728843271010,0.251196,62356.0,62355.0,0.080198]
[1728843271401,0.252196,62356.0,62355.0,0.080198]
[1728843272799,0.002,62356.0,62355.0,0.731318]
[1728843273001,0.0112,62369.0,62364.0,0.080186]
[1728843273002,0.0037,62365.0,62364.0,0.080186]
[1728843273210,0.0825846,62370.0,62364.0,0.17]
[1728843273394,0.0825846,62370.0,62369.0,0.08018]